Workbook

Sheet SAŽETAK
A1: POLUGODIŠNJI IZVJEŠTAJ O IZVRŠENJU FINANCIJSKOG PLANA 2024. GODINE - MEDICINSKA ŠKOLA U RIJECI
C2: OPĆI DIO
A3: SAŽETAK RAČUNA PRIHODA I RASHODA I RAČUNA FINANCIRANJA
A5: A. RAČUN PRIHODA I RASHODA
A6: Oznaka | B6: Ostvarenje/Izvršenje 1.1.-30.6.2023. godine (1) | C6: Izvorni plan / Rebalans (2) | D6: Ostvarenje/Izvršenje 1.1.-30.6.2024. godine (3.) | E6: Indeks 3. /1. (4) | F6: Indeks 3./2. (5)
A7: A. RAČUN PRIHODA I RASHODA
A8: 6 Prihodi poslovanja | B8: 1342118.77 | C8: 3670332.3 | D8: 1538789.41 | E8: =+D8/B8*100 -> 114.6537433 | F8: =+D8/C8*100 -> 41.92507065
A9: 7 Prihodi od prodaje nefinancijske imovine | B9: 0 | C9: 0 | D9: 0 | E9: 0 | F9: 0
A10: UKUPNO PRIHODI | B10: =+B8+B9 -> 1342118.77 | C10: =+C8+C9 -> 3670332.3 | D10: =+D8+D9 -> 1538789.41 | E10: =+D10/B10*100 -> 114.6537433 | F10: =+D10/C10*100 -> 41.92507065
A11: 3 Rashodi poslovanja | B11: 1340635.44 | C11: 3209782.71 | D11: 1555150.45 | E11: =+D11/B11*100 -> 116.000995 | F11: =+D11/C11*100 -> 48.4503342
A12: 4 Rashodi za nefinancijsku imovinu | B12: 2976.17 | C12: 3049.08 | D12: 905 | E12: =+D12/B12*100 -> 30.40820921 | F12: =+D12/C12*100 -> 29.68108413
A13: UKUPNO RASHODI | B13: =+B11+B12 -> 1343611.61 | C13: =+C11+C12 -> 3212831.79 | D13: =+D11+D12 -> 1556055.45 | E13: =+D13/B13*100 -> 115.8114025 | F13: =+D13/C13*100 -> 48.43252158
A14: RAZLIKA - VIŠAK/MANJAK (A) | B14: =+B10-B13 -> -1492.84 | C14: =+C10-C13 -> 457500.51 | D14: =+D10-D13 -> -17266.04 | E14: =+D14/B14*100 -> 1156.590124 | F14: =+D14/C14*100 -> -3.773993607
A18: B. RAČUN FINANCIRANJA
A19: Oznaka | B19: =+B6 -> Ostvarenje/Izvršenje 1.1.-30.6.2023. godine (1) | C19: Izvorni plan / Rebalans (2) | D19: =+D6 -> Ostvarenje/Izvršenje 1.1.-30.6.2024. godine (3.) | E19: Indeks 3./1. (4) | F19: Indeks 3./2. (5)
A20: B. RAČUN PRIHODA I PRIMITAKA
A21: 8 Primici od financijske imovine | B21: 0 | C21: 0 | D21: 0 | E21: 0 | F21: =+D21/C21*100 -> 
A22: 5 Izdaci za financ.im. i otplate zajmova | B22: 0 | C22: 430332.69 | D22: 430332.69 | E22: 0 | F22: 0
A23: NETO ZADUŽIVANJE/FINANCIRANJE (B) | B23: =+B21-B22 -> 0 | C23: =+C21-C22 -> -430332.69 | D23: =+D21-D22 -> -430332.69 | E23: 0 | F23: =+D23/C23*100 -> 100
A26: C. PRENESENA SREDSTVA IZ PRETHODNE GODINE
B27: =+B6 -> Ostvarenje/Izvršenje 1.1.-30.6.2023. godine (1) | C27: Izvorni plan / Rebalans (2) | D27: =+D6 -> Ostvarenje/Izvršenje 1.1.-30.6.2024. godine (3.) | E27: Indeks 3./1. (4) | F27: Indeks 3./2. (5)
A28: PRENESENA SREDSTVA ( C) | B28: =+B29-B30 -> -15837.43 | C28: =+C29-C30 -> -27167.82 | D28: =+D29-D30 -> -28399.94 | E28: =+D28/B28*100 -> 179.321645 | F28: =+D28/C28*100 -> 104.5352185
A29: Prenesena raspoloživa sredstva iz prethodne godine | B29: 15316.8 | C29: 433451.12 | D29: 459994.97 | E29: =+D29/B29*100 -> 3003.205435 | F29: =+D29/C29*100 -> 106.1238393
A30: Preneseni manjak iz prethodne godine | B30: 31154.23 | C30: 460618.94 | D30: 488394.91 | E30: =+D30/B30*100 -> 1567.66805 | F30: =+D30/C30*100 -> 106.0301407

Sheet Račun prihoda i rashoda
A1: I. OPĆI DIO
A2: A. RAČUN PRIHODA I RASHODA
A4: PRIHODI POSLOVANJA PREMA EKONOMSKOJ KLASIFIKACIJI
A7: Oznaka | B7: Ostvarenje/Izvršenje 1.1.-30.6.2023. | C7: Izvorni plan / Rebalans 2024. | D7: Ostvarenje/Izvršenje 1.1.-30.6.2024. | E7: Indeks | F7: Indeks
A8: 1 | B8: 2 | C8: 3 | D8: 4 | E8: 5=4/2*100 | F8: 6=4/3*100
A9: 6 Prihodi poslovanja | B9: =+B10+B16+B19+B22+B28 -> 1342118.77 | C9: 3670332.3 | D9: 1538789.41 | E9: 114.65 | F9: 41.93
A10: 63 Pomoći iz inozemstva i od subjekata unutar općeg proračuna | B10: 1161180.62 | C10: 3439008.02 | D10: 1437583.97 | E10: 123.8 | F10: 41.8
A11: 636 Pomoći proračunskim korisnicima iz proračuna koji im nije nadležan | B11: 1161180.62 | C11: 2981767.34 | D11: 1437583.97 | E11: 123.8 | F11: 48.21
A12: 6361 Tekuće pomoći proračunskim korisnicima iz proračuna koji im nije nadležan | B12: 1161180.62 | C12: 2981634.62 | D12: 1437583.97 | E12: 123.8 | F12: 48.21
A13: 6362 Kapitalne pomoći proračunskim korisnicima iz proračuna koji im nije nadležan | C13: 132.72
A14: 638 Pomoći temeljem prijenosa EU sredstava | C14: 457240.68
A15: 6382 Kapitalne pomoći temeljem prijenosa EU sredstava | C15: 457240.68
A16: 64 Prihodi od imovine | C16: 3 | D16: 0.75 | F16: 25
A17: 641 Prihodi od financijske imovine | C17: 3 | D17: 0.75 | F17: 25
A18: 6413 Kamate na oročena sredstva i depozite po viđenju | C18: 3 | D18: 0.75 | F18: 25
A19: 65 Prihodi od upravnih i administrativnih pristojbi, pristojbi po posebnim propisima i naknada | B19: 1111.78 | C19: 34150.66 | D19: 7068.22 | E19: 635.76 | F19: 20.7
A20: 652 Prihodi po posebnim propisima | B20: 1111.78 | C20: 34150.66 | D20: 7068.22 | E20: 635.76 | F20: 20.7
A21: 6526 Ostali nespomenuti prihodi | B21: 1111.78 | C21: 34150.66 | D21: 7068.22 | E21: 635.76 | F21: 20.7
A22: 66 Prihodi od prodaje proizvoda i robe te pruženih usluga i prihodi od donacija te povrati po protestiranim jamstvima | B22: 7556.58 | C22: 16819.97 | D22: 8681.79 | E22: 114.89 | F22: 51.62
A23: 661 Prihodi od prodaje proizvoda i robe te pruženih usluga | B23: 4927.77 | C23: 14969.36 | D23: 7693.64 | E23: 156.13 | F23: 51.4
A24: 6615 Prihodi od pruženih usluga | B24: 4927.77 | C24: 14969.36 | D24: 7693.64 | E24: 156.13 | F24: 51.4
A25: 663 Donacije od pravnih i fizičkih osoba izvan općeg proračuna i povrat donacija po protestiranim jamstvima | B25: 2628.81 | C25: 1850.61 | D25: 988.15 | E25: 37.59 | F25: 53.4
A26: 6631 Tekuće donacije | B26: 1240.08 | C26: 1319.72 | D26: 144.15 | E26: 11.62 | F26: 10.92
A27: 6632 Kapitalne donacije | B27: 1388.73 | C27: 530.89 | D27: 844 | E27: 60.77 | F27: 158.98
A28: 67 Prihodi iz nadležnog proračuna i od HZZO-a temeljem ugovornih obveza | B28: =+B29 -> 172269.79 | C28: 180350.65 | D28: 85454.68 | E28: =+D28/B28*100 -> 49.60514551 | F28: 47.38
A29: 671 Prihodi iz nadležnog proračuna za financiranje redovne djelatnosti proračunskih korisnika | B29: =+B30+B31 -> 172269.79 | C29: 180350.65 | D29: 85454.68 | E29: =+D29/B29*100 -> 49.60514551 | F29: 47.38
A30: 6711 Prihodi iz nadležnog proračuna za financiranje rashoda poslovanja | B30: =171814.45-74.22 -> 171740.23 | C30: 180350.65 | D30: 85454.68 | E30: =+D30/B30*100 -> 49.75810269 | F30: 47.38
A31: 6712 Prihodi iz nadležnog proračuna za financiranje rashoda za nabavu nefinancijske imovine | B31: 529.56
A32: SVEUKUPNO PRIHODI | B32: =+B9 -> 1342118.77 | C32: 3670332.3 | D32: 1538789.41 | E32: 114.65 | F32: 41.93
A36: RASHODI POSLOVANJA PREMA EKONOMSKOJ KLASIFIKACIJI
A38: Oznaka | B38: Ostvarenje/Izvršenje 1.1.-30.6.2023. | C38: Izvorni plan / Rebalans 2024. | D38: Ostvarenje/Izvršenje 1.1.-30.6.2024. | E38: Indeks | F38: Indeks
A39: 1 | B39: 2 | C39: 3 | D39: 4 | E39: 5=4/2*100 | F39: 6=4/3*100
A40: 3 Rashodi poslovanja | B40: 1340635.44 | C40: 3209782.71 | D40: 1555150.45 | E40: 116 | F40: 48.45
A41: 31 Rashodi za zaposlene | B41: 1122635.37 | C41: 2972988.48 | D41: 1435380.91 | E41: 127.86 | F41: 48.28
A42: 311 Plaće (Bruto) | B42: 933024.79 | C42: 2488100.12 | D42: 1190976.65 | E42: 127.65 | F42: 47.87
A43: 3111 Plaće za redovan rad | B43: 911660.05 | C43: 2411242.69 | D43: 1159489.23 | E43: 127.18 | F43: 48.09
A44: 3113 Plaće za prekovremeni rad | B44: 21364.74 | C44: 76857.43 | D44: 31487.42 | E44: 147.38 | F44: 40.97
A45: 312 Ostali rashodi za zaposlene | B45: 35545.75 | C45: 74080.66 | D45: 47776.71 | E45: 134.41 | F45: 64.49
A46: 3121 Ostali rashodi za zaposlene | B46: 35545.75 | C46: 74080.66 | D46: 47776.71 | E46: 134.41 | F46: 64.49
A47: 313 Doprinosi na plaće | B47: 154064.83 | C47: 410807.7 | D47: 196627.55 | E47: 127.63 | F47: 47.86
A48: 3132 Doprinosi za obvezno zdravstveno osiguranje | B48: 154048.58 | C48: 410652.97 | D48: 196627.55 | E48: 127.64 | F48: 47.88
A49: 3133 Doprinosi za obvezno osiguranje u slučaju nezaposlenosti | B49: 16.25 | C49: 154.73
A50: 32 Materijalni rashodi | B50: 213809.85 | C50: 224794.02 | D50: 116678.01 | E50: 54.57 | F50: 51.9
A51: 321 Naknade troškova zaposlenima | B51: 41009.81 | C51: 56400.27 | D51: 44419.38 | E51: 108.31 | F51: 78.76
A52: 3211 Službena putovanja | B52: 8672.6 | C52: 13434.07 | D52: 7126.89 | E52: 82.18 | F52: 53.05
A53: 3212 Naknade za prijevoz, za rad na terenu i odvojeni život | B53: 32099.01 | C53: 41805.77 | D53: 36914.39 | E53: 115 | F53: 88.3
A54: 3213 Stručno usavršavanje zaposlenika | B54: 221 | C54: 881.71 | D54: 378.1 | E54: 171.09 | F54: 42.88
A55: 3214 Ostale naknade troškova zaposlenima | B55: 17.2 | C55: 278.72
A56: 322 Rashodi za materijal i energiju | B56: 57636.76 | C56: 98238.77 | D56: 34391.22 | E56: 59.67 | F56: 35.01
A57: 3221 Uredski materijal i ostali materijalni rashodi | B57: 8760.82 | C57: 12949.03 | D57: 10918.68 | E57: 124.63 | F57: 84.32
A58: 3222 Materijal i sirovine | B58: 6763.47 | C58: 17602.88 | D58: 10467.51 | E58: 154.77 | F58: 59.46
A59: 3223 Energija | B59: 39262.96 | C59: 62614.66 | D59: 10462.42 | E59: 26.65 | F59: 16.71
A60: 3224 Materijal i dijelovi za tekuće i investicijsko održavanje | B60: 1683.1 | C60: 2482.05 | D60: 1481.73 | E60: 88.04 | F60: 59.7
A61: 3225 Sitni inventar i auto gume | B61: 872.59 | C61: 1892.9 | D61: 569.66 | E61: 65.28 | F61: 30.09
A62: 3227 Službena, radna i zaštitna odjeća i obuća | B62: 293.82 | C62: 697.25 | D62: 491.22 | E62: 167.18 | F62: 70.45
A63: 323 Rashodi za usluge | B63: 109895.98 | C63: 59323.45 | D63: 33630.81 | E63: 30.6 | F63: 56.69
A64: 3231 Usluge telefona, pošte i prijevoza | B64: 1939.38 | C64: 4117.45 | D64: 1992.01 | E64: 102.71 | F64: 48.38
A65: 3232 Usluge tekućeg i investicijskog održavanja | B65: 88702.2 | C65: 10263.42 | D65: 6356.65 | E65: 7.17 | F65: 61.94
A66: 3233 Usluge promidžbe i informiranja | B66: 248.85 | C66: 497.7 | D66: 740 | E66: 297.37 | F66: 148.68
A67: 3234 Komunalne usluge | B67: 11117.06 | C67: 23485.54 | D67: 12016.53 | E67: 108.09 | F67: 51.17
A68: 3235 Zakupnine i najamnine | B68: 704.52 | C68: 2057.2 | D68: 597.13 | E68: 84.76 | F68: 29.03
A69: 3236 Zdravstvene i veterinarske usluge | B69: 1725.43 | C69: 3708.12 | D69: 1579.43 | E69: 91.54 | F69: 42.59
A70: 3237 Intelektualne i osobne usluge | B70: 1282.02 | C70: 7418 | D70: 3745.08 | E70: 292.12 | F70: 50.49
A71: 3238 Računalne usluge | B71: 1886.8 | C71: 3552.27 | D71: 2357.48 | E71: 124.95 | F71: 66.37
A72: 3239 Ostale usluge | B72: 2289.72 | C72: 4223.75 | D72: 4246.5 | E72: 185.46 | F72: 100.54
A73: 324 Naknade troškova osobama izvan radnog odnosa | B73: 1098.54 | C73: 3759.29 | D73: 253.02 | E73: 23.03 | F73: 6.73
A74: 3241 Naknade troškova osobama izvan radnog odnosa | B74: 1098.54 | C74: 3759.29 | D74: 253.02 | E74: 23.03 | F74: 6.73
A75: 329 Ostali nespomenuti rashodi poslovanja | B75: 4168.76 | C75: 7072.24 | D75: 3983.58 | E75: 95.56 | F75: 56.33
A76: 3291 Naknade za rad predstavničkih i izvršnih tijela, povjerenstava i slično | B76: 542.11 | C76: 286.06 | D76: 242.38 | E76: 44.71 | F76: 84.73
A77: 3292 Premije osiguranja | C77: 515.33
A78: 3293 Reprezentacija | B78: 55.49 | C78: 100
A79: 3294 Članarine i norme | B79: 35 | C79: 35
A80: 3295 Pristojbe i naknade | B80: 2572.83 | C80: 5235.85 | D80: 3172.28 | E80: 123.3 | F80: 60.59
A81: 3296 Troškovi sudskih postupaka | B81: 124.43 | C81: 300
A82: 3299 Ostali nespomenuti rashodi poslovanja | B82: 838.9 | C82: 600 | D82: 568.92 | E82: 67.82 | F82: 94.82
A83: 34 Financijski rashodi | B83: 1778.55 | C83: 8956.12 | D83: 1318.53 | E83: 74.14 | F83: 14.72
A84: 342 Kamate za primljene kredite i zajmove | C84: 4500 | D84: 194.85 | F84: 4.33
A85: 3423 Kamate za primljene kredite i zajmove od kreditnih i ostalih financijskih institucija izvan javnog sektora | C85: 4500 | D85: 194.85 | F85: 4.33
A86: 343 Ostali financijski rashodi | B86: 1778.55 | C86: 4456.12 | D86: 1123.68 | E86: 63.18 | F86: 25.22
A87: 3431 Bankarske usluge i usluge platnog prometa | B87: 364.94 | C87: 1142.51 | D87: 131.54 | E87: 36.04 | F87: 11.51
A88: 3433 Zatezne kamate | B88: 1413.61 | C88: 313.61 | D88: 16.31 | E88: 1.15 | F88: 5.2
A89: 3434 Ostali nespomenuti financijski rashodi | C89: 3000 | D89: 975.83 | F89: 32.53
A90: 37 Naknade građanima i kućanstvima na temelju osiguranja i druge naknade | B90: 46.85 | C90: 227.09
A91: 372 Ostale naknade građanima i kućanstvima iz proračuna | B91: 46.85 | C91: 227.09
A92: 3722 Naknade građanima i kućanstvima u naravi | B92: 46.85 | C92: 227.09
A93: 38 Ostali rashodi | B93: 2364.82 | C93: 2817 | D93: 1773 | E93: 74.97 | F93: 62.94
A94: 381 Tekuće donacije | B94: 2364.82 | C94: 2817 | D94: 1773 | E94: 74.97 | F94: 62.94
A95: 3812 Tekuće donacije u naravi | B95: 2364.82 | C95: 2817 | D95: 1773 | E95: 74.97 | F95: 62.94
A96: 4 Rashodi za nabavu nefinancijske imovine | B96: 2976.17 | C96: 3049.08 | D96: 905 | E96: 30.41 | F96: 29.68
A97: 42 Rashodi za nabavu proizvedene dugotrajne imovine | B97: 2976.17 | C97: 3049.08 | D97: 905 | E97: 30.41 | F97: 29.68
A98: 422 Postrojenja i oprema | B98: 2976.17 | C98: 2217.28 | D98: 905 | E98: 30.41 | F98: 40.82
A99: 4221 Uredska oprema i namještaj | B99: 800.38 | C99: 1332.9 | D99: 250 | E99: 31.24 | F99: 18.76
A100: 4223 Oprema za održavanje i zaštitu | B100: 837.5
A101: 4224 Medicinska i laboratorijska oprema | C101: 500
A102: 4227 Uređaji, strojevi i oprema za ostale namjene | B102: 1338.29 | C102: 384.38 | D102: 655 | E102: 48.94 | F102: 170.4
A103: 424 Knjige, umjetnička djela i ostale izložbene vrijednosti | C103: 331.8
A104: 4241 Knjige | C104: 331.8
A105: 426 Nematerijalna proizvedena imovina | C105: 500
A106: 4262 Ulaganja u računalne programe | C106: 500
A107: SVEUKUPNO RASHODI | B107: 1343611.61 | C107: 3212831.79 | D107: 1556055.45 | E107: 115.81 | F107: 48.43

Sheet Prihodi i rashodi po izvorima
A2: I. OPĆI DIO
A3: A. RAČUN PRIHODA I RASHODA
A5: PRIHODI POSLOVANJA PREMA IZVORIMA FINANCIRANJA
A6: Oznaka | B6: Ostvarenje/Izvršenje 1.1.-30.6.2023. | C6: Izvorni plan / Rebalans 2024. | D6: Ostvarenje/Izvršenje 1.1.-30.6.2024. | E6: Indeks | F6: Indeks
A7: 1 | B7: 2 | C7: 3 | D7: 4 | E7: 5=4/2*100 | F7: 6=4/3*100
A8: Izvor: 1 OPĆI PRIHODI I PRIMICI | B8: 73305.84 | C8: 11504.5 | D8: 3391.11 | E8: 4.63 | F8: 29.48
A9: Izvor: 11 Opći prihodi i primici | C9: 11504.5 | D9: 3391.11 | F9: 29.48
A10: Izvor: 18 Prenesena sredstva - opći prihodi i primici | B10: 73305.84
A11: Izvor: 3 VLASTITI PRIHODI | B11: 4927.77 | C11: 14973.02 | D11: 7695.05 | E11: 156.16 | F11: 51.39
A12: Izvor: 32 Vlastiti prihodi - proračunski korisnici | B12: 4927.77 | C12: 14973.02 | D12: 7695.05 | E12: 156.16 | F12: 51.39
A13: Izvor: 4 PRIHODI ZA POSEBNE NAMJENE | B13: =+B14+B15 -> 100075.73 | C13: 199350.76 | D13: 88325.38 | E13: =+D13/B13*100 -> 88.25854181 | F13: 44.31
A14: Izvor: 43 Prihodi za posebne namjene - proračunski korisnici | B14: 1111.78 | C14: 34150 | D14: 7067.56 | E14: 635.7 | F14: 20.7
A15: Izvor: 44 Prihodi za decentralizirane funkcije | B15: =99038.17-74.22 -> 98963.95 | C15: 165200.76 | D15: 81257.82 | E15: =+D15/B15*100 -> 82.10850517 | F15: 49.19
A16: Izvor: 5 POMOĆI | B16: 1161180.62 | C16: 3442653.41 | D16: 1438389.72 | E16: 123.87 | F16: 41.78
A17: Izvor: 51 Pomoći | C17: 3259.28 | D17: 419.64 | F17: 12.88
A18: Izvor: 52 Pomoći - proračunski korisnici | B18: 1161180.62 | C18: 3439008.02 | D18: 1437583.97 | E18: 123.8 | F18: 41.8
A19: Izvor: 58 Prenesena sredstva - pomoći | C19: 386.11 | D19: 386.11 | F19: 100
A20: Izvor: 6 DONACIJE | B20: 2628.81 | C20: 1850.61 | D20: 988.15 | E20: 37.59 | F20: 53.4
A21: Izvor: 62 Donacije - proračunski korisnici | B21: 2628.81 | C21: 1850.61 | D21: 988.15 | E21: 37.59 | F21: 53.4
A22: SVEUKUPNO PRIHODI | B22: =+B8+B11+B13+B16+B20 -> 1342118.77 | C22: 3670332.3 | D22: 1538789.41 | E22: 114.65 | F22: 41.93
A26: RASHODI POSLOVANJA PREMA IZVORIMA FINANCIRANJA
A28: Oznaka | B28: Ostvarenje/Izvršenje 1.1.-30.6.2023. | C28: Izvorni plan / Rebalans 2024. | D28: Ostvarenje/Izvršenje 1.1.-30.6.2024. | E28: Indeks | F28: Indeks
A29: 1 | B29: 2 | C29: 3 | D29: 4 | E29: 5=4/2*100 | F29: 6=4/3*100
A30: Izvor: 1 OPĆI PRIHODI I PRIMICI | B30: 85046.61 | C30: 11504.5 | D30: 4248.09 | E30: 5 | F30: 36.93
A31: Izvor: 11 Opći prihodi i primici | B31: 1310.11 | C31: 11504.5 | D31: 4248.09 | E31: 324.25 | F31: 36.93
A32: Izvor: 18 Prenesena sredstva - opći prihodi i primici | B32: 83736.5
A33: Izvor: 3 VLASTITI PRIHODI | B33: 5136.18 | C33: 15927.21 | D33: 7886.91 | E33: 153.56 | F33: 49.52
A34: Izvor: 32 Vlastiti prihodi - proračunski korisnici | B34: 2602.67 | C34: 14973.02 | D34: 6932.72 | E34: 266.37 | F34: 46.3
A35: Izvor: 38 Prenesena sredstva - vlastiti prihodi proračunskih korisnika | B35: 2533.51 | C35: 954.19 | D35: 954.19 | E35: 37.66 | F35: 100
A36: Izvor: 4 PRIHODI ZA POSEBNE NAMJENE | B36: 120647.53 | C36: 199936.12 | D36: 105064.94 | E36: 87.08 | F36: 52.55
A37: Izvor: 43 Prihodi za posebne namjene - proračunski korisnici | B37: 7650.68 | C37: 34150 | D37: 12235.33 | E37: 159.92 | F37: 35.83
A38: Izvor: 44 Prihodi za decentralizirane funkcije | B38: 110754.65 | C38: 165200.76 | D38: 92244.25 | E38: 83.29 | F38: 55.84
A39: Izvor: 48 Prenesena sredstva - namjenski prihodi | B39: 2242.2 | C39: 585.36 | D39: 585.36 | E39: 26.11 | F39: 100
A40: Izvor: 5 POMOĆI | B40: 1130199.13 | C40: 2983613.35 | D40: 1438711.36 | E40: 127.3 | F40: 48.22
A41: Izvor: 51 Pomoći | C41: 3259.28 | D41: 843.87 | F41: 25.89
A42: Izvor: 52 Pomoći - proračunski korisnici | B42: 1130199.13 | C42: 2978389.08 | D42: 1435902.5 | E42: 127.05 | F42: 48.21
A43: Izvor: 58 Prenesena sredstva - pomoći | C43: 1964.99 | D43: 1964.99 | F43: 100
A44: Izvor: 6 DONACIJE | B44: 2582.16 | C44: 1850.61 | D44: 144.15 | E44: 5.58 | F44: 7.79
A45: Izvor: 62 Donacije - proračunski korisnici | B45: 2582.16 | C45: 1850.61 | D45: 144.15 | E45: 5.58 | F45: 7.79
A46: SVEUKUPNO RASHODI | B46: 1343611.61 | C46: 3212831.79 | D46: 1556055.45 | E46: 115.81 | F46: 48.43

Sheet Rashodi prema funkc.klas.
A1: I. OPĆI DIO
A3: A. RAČUN PRIHODA I RASHODA
A5: RASHODI PREMA FUNKCIJSKOJ KLASIFIKACIJI
A7: Oznaka | B7: Ostvarenje/Izvršenje 1.1.-30.6.2023. | C7: Izvorni plan / Rebalans 2024. | D7: Ostvarenje/Izvršenje 1.1.-30.6.2024. | E7: Indeks | F7: Indeks
A8: 1 | B8: 2 | C8: 3 | D8: 4 | E8: 5=4/2*100 | F8: 6=4/3*100
A9: SVEUKUPNO RASHODI I IZDACI | B9: 1343611.61 | C9: 3212831.79 | D9: 1556055.45 | E9: 115.81 | F9: 48.43
A10: 09 Obrazovanje | B10: =+B11+B12 -> 1343611.61 | C10: =+C11+C12 -> 3212831.79 | D10: =+D11+D12 -> 1556055.45 | E10: =+D10/B10*100 -> 115.8114025 | F10: =+D10/C10*100 -> 48.43252158
A11: 092 Srednjoškolsko obrazovanje | B11: 1343001.5 | C11: 3212483.73 | D11: 1555751.07 | E11: 115.84 | F11: 48.43
A12: 098 Usluge obrazovanja koje nisu drugdje svrstane | B12: 610.11 | C12: 348.06 | D12: 304.38 | E12: 49.89 | F12: 87.45

Sheet Račun financiranja
A3: I. OPĆI DIO
A5: B. RAČUN FINANCIRANJA PREMA EKONOMSKOJ KLASIFIKACIJI
A8: Oznaka | B8: Ostvarenje/Izvršenje 1.1.-30.6.2023. | C8: Izvorni plan / Rebalans 2024. | D8: Ostvarenje/Izvršenje 1.1.-30.6.2024. | E8: Indeks | F8: Indeks
A9: 1 | B9: 2 | C9: 3 | D9: 4 | E9: 5=4/2*100 | F9: 6=4/3*100
A10: B. RAČUN FINANCIRANJA
A11: 5 Izdaci za financijsku imovinu i otplate zajmova | C11: 430332.69 | D11: 430332.69 | F11: 100
A12: 54 Izdaci za otplatu glavnice primljenih kredita i zajmova | C12: 430332.69 | D12: 430332.69 | F12: 100
A13: 544 Otplata glavnice primljenih kredita i zajmova od kreditnih i ostalih financijskih institucija izvan javnog sektora | C13: 430332.69 | D13: 430332.69 | F13: 100
A14: 5443 Otplata glavnice primljenih kredita od tuzemnih kreditnih institucija izvan javnog sektora | C14: 430332.69 | D14: 430332.69 | F14: 100
A15: SVEUKUPNO IZDACI | C15: 430332.69 | D15: 430332.69 | F15: 100

Sheet Račun financiranja po izvorima
A3: I. OPĆI DIO
A5: B. RAČUN FINANCIRANJA PREMA IZVORIMA FINANCIRANJA
A7: Oznaka | B7: Ostvarenje/Izvršenje 1.1.-30.6.2023. | C7: Izvorni plan / Rebalans 2024. | D7: Ostvarenje/Izvršenje 1.1.-30.6.2024. | E7: Indeks | F7: Indeks
A8: 1 | B8: 2 | C8: 3 | D8: 4 | E8: 5=4/2*100 | F8: 6=4/3*100
A9: B. RAČUN FINANCIRANJA
A10: Izvor: 8 NAMJENSKI PRIMICI | C10: 430332.69 | D10: 430332.69 | F10: 100
A11: Izvor: 88 Prenesena sredstva - namjenski primici | C11: 430332.69 | D11: 430332.69 | F11: 100
A12: SVEUKUPNO IZDACI | C12: 430332.69 | D12: 430332.69 | F12: 100

Sheet Posebni dio
A5: II. POSEBNI DIO
A9: Oznaka | B9: Izvorni plan / Rebalans 2024. | C9: Ostvarenje/Izvršenje 1.1.-30.6.2024. | D9: Indeks
A10: 1 | B10: 2 | C10: 3 | D10: 4=3/2*100
A11: SVEUKUPNO RASHODI I IZDACI | B11: 3643164.48 | C11: 1986388.14 | D11: 54.52
A12: 17546 MEDICINSKA ŠKOLA U RIJECI | B12: 3643164.48 | C12: 1986388.14 | D12: 54.52
A13: Program: 5306 Obilježavanje postignuća učenika i nastavnika | B13: 348.06 | C13: 304.38 | D13: 87.45
A14: A 530605 Natjecanja i smotre | B14: 348.06 | C14: 304.38 | D14: 87.45
A15: Izvor: 11 Opći prihodi i primici | B15: 348.06 | C15: 304.38 | D15: 87.45
A16: 32 Materijalni rashodi | B16: 348.06 | C16: 304.38 | D16: 87.45
A17: 3221 Uredski materijal i ostali materijalni rashodi | C17: 11
A18: 3222 Materijal i sirovine | C18: 51
A19: 3291 Naknade za rad predstavničkih i izvršnih tijela, povjerenstava i slično | C19: 242.38
A20: Program: 5501 Srednjoškolsko obrazovanje | B20: 3629648.51 | C20: 1979402.75 | D20: 54.53
A21: A 550101 Osiguravanje uvjeta rada | B21: 3191815.82 | C21: 1547899.38 | D21: 48.5
A22: Izvor: 32 Vlastiti prihodi - proračunski korisnici | B22: 14973.02 | C22: 6932.72 | D22: 46.3
A23: 31 Rashodi za zaposlene | B23: 2500 | C23: 3280 | D23: 131.2
A24: 3121 Ostali rashodi za zaposlene | C24: 3280
A25: 32 Materijalni rashodi | B25: 12373.02 | C25: 3652.72 | D25: 29.52
A26: 3211 Službena putovanja | C26: 3500.73
A27: 3212 Naknade za prijevoz, za rad na terenu i odvojeni život | C27: 0.66
A28: 3222 Materijal i sirovine | C28: 16.07
A29: 3241 Naknade troškova osobama izvan radnog odnosa | C29: 135.26
A30: 37 Naknade građanima i kućanstvima na temelju osiguranja i druge naknade | B30: 100
A31: Izvor: 38 Prenesena sredstva - vlastiti prihodi proračunskih korisnika | B31: 954.19 | C31: 954.19 | D31: 100
A32: 31 Rashodi za zaposlene
A33: 3121 Ostali rashodi za zaposlene
A34: 32 Materijalni rashodi | B34: 954.19 | C34: 954.19 | D34: 100
A35: 3211 Službena putovanja | C35: 42
A36: 3221 Uredski materijal i ostali materijalni rashodi
A37: 3232 Usluge tekućeg i investicijskog održavanja | C37: 912.19
A38: Izvor: 43 Prihodi za posebne namjene - proračunski korisnici | B38: 31764.53 | C38: 11330.33 | D38: 35.67
A39: 32 Materijalni rashodi | B39: 30846.91 | C39: 11316.81 | D39: 36.69
A40: 3213 Stručno usavršavanje zaposlenika | C40: 160
A41: 3214 Ostale naknade troškova zaposlenima
A42: 3221 Uredski materijal i ostali materijalni rashodi | C42: 1158.27
A43: 3222 Materijal i sirovine | C43: 855.85
A44: 3224 Materijal i dijelovi za tekuće i investicijsko održavanje | C44: 360.37
A45: 3225 Sitni inventar i auto gume | C45: 197.27
A46: 3232 Usluge tekućeg i investicijskog održavanja | C46: 1255.31
A47: 3233 Usluge promidžbe i informiranja | C47: 740
A48: 3235 Zakupnine i najamnine | C48: 597.13
A49: 3237 Intelektualne i osobne usluge | C49: 1186.78
A50: 3238 Računalne usluge | C50: 140.4
A51: 3239 Ostale usluge | C51: 4022.75
A52: 3241 Naknade troškova osobama izvan radnog odnosa | C52: 73.76
A53: 3293 Reprezentacija
A54: 3299 Ostali nespomenuti rashodi poslovanja | C54: 568.92
A55: 34 Financijski rashodi | B55: 917.62 | C55: 13.52 | D55: 1.47
A56: 3433 Zatezne kamate | C56: 13.52
A57: Izvor: 44 Prihodi za decentralizirane funkcije | B57: 165200.76 | C57: 92244.25 | D57: 55.84
A58: 32 Materijalni rashodi | B58: 164936.23 | C58: 92112.71 | D58: 55.85
A59: 3211 Službena putovanja | C59: 3345.16
A60: 3212 Naknade za prijevoz, za rad na terenu i odvojeni život | C60: 36748.5
A61: 3213 Stručno usavršavanje zaposlenika | C61: 218.1
A62: 3221 Uredski materijal i ostali materijalni rashodi | C62: 8170.53
A63: 3222 Materijal i sirovine | C63: 9257.47
A64: 3223 Energija | C64: 10462.42
A65: 3224 Materijal i dijelovi za tekuće i investicijsko održavanje | C65: 1051.36
A66: 3225 Sitni inventar i auto gume
A67: 3227 Službena, radna i zaštitna odjeća i obuća | C67: 491.22
A68: 3231 Usluge telefona, pošte i prijevoza | C68: 1992.01
A69: 3232 Usluge tekućeg i investicijskog održavanja | C69: 4189.15
A70: 3234 Komunalne usluge | C70: 12016.53
A71: 3236 Zdravstvene i veterinarske usluge | C71: 1579.43
A72: 3237 Intelektualne i osobne usluge | C72: 150
A73: 3238 Računalne usluge | C73: 2217.08
A74: 3239 Ostale usluge | C74: 223.75
A75: 3294 Članarine i norme
A76: 34 Financijski rashodi | B76: 264.53 | C76: 131.54 | D76: 49.73
A77: 3431 Bankarske usluge i usluge platnog prometa | C77: 131.54
A78: Izvor: 48 Prenesena sredstva - namjenski prihodi | B78: 585.36 | C78: 585.36 | D78: 100
A79: 32 Materijalni rashodi | B79: 585.36 | C79: 585.36 | D79: 100
A80: 3222 Materijal i sirovine | C80: 287.12
A81: 3224 Materijal i dijelovi za tekuće i investicijsko održavanje | C81: 70
A82: 3225 Sitni inventar i auto gume | C82: 228.24
A83: 3232 Usluge tekućeg i investicijskog održavanja
A84: Izvor: 52 Pomoći - proračunski korisnici | B84: 2975439.36 | C84: 1434129.5 | D84: 48.2
A85: 31 Rashodi za zaposlene | B85: 2963525.07 | C85: 1428263.13 | D85: 48.19
A86: 3111 Plaće za redovan rad | C86: 1156538.35
A87: 3113 Plaće za prekovremeni rad | C87: 31487.42
A88: 3121 Ostali rashodi za zaposlene | C88: 44096.71
A89: 3132 Doprinosi za obvezno zdravstveno osiguranje | C89: 196140.65
A90: 3133 Doprinosi za obvezno osiguranje u slučaju nezaposlenosti
A91: 32 Materijalni rashodi | B91: 11513.23 | C91: 5863.58 | D91: 50.93
A92: 3211 Službena putovanja | C92: 239
A93: 3237 Intelektualne i osobne usluge | C93: 2408.3
A94: 3241 Naknade troškova osobama izvan radnog odnosa | C94: 44
A95: 3295 Pristojbe i naknade | C95: 3172.28
A96: 3296 Troškovi sudskih postupaka
A97: 34 Financijski rashodi | B97: 273.97 | C97: 2.79 | D97: 1.02
A98: 3433 Zatezne kamate | C98: 2.79
A99: 37 Naknade građanima i kućanstvima na temelju osiguranja i druge naknade | B99: 127.09
A100: 3722 Naknade građanima i kućanstvima u naravi
A101: Izvor: 58 Prenesena sredstva - pomoći | B101: 1578.88 | C101: 1578.88 | D101: 100
A102: 32 Materijalni rashodi | B102: 1578.88 | C102: 1578.88 | D102: 100
A103: 3221 Uredski materijal i ostali materijalni rashodi | C103: 1578.88
A104: Izvor: 62 Donacije - proračunski korisnici | B104: 1319.72 | C104: 144.15 | D104: 10.92
A105: 32 Materijalni rashodi | B105: 1319.72 | C105: 144.15 | D105: 10.92
A106: 3211 Službena putovanja
A107: 3225 Sitni inventar i auto gume | C107: 144.15
A108: 3241 Naknade troškova osobama izvan radnog odnosa
A109: T 550102 Investicijsko održavanje objekata i opreme
A110: Izvor: 18 Prenesena sredstva - opći prihodi i primici
A111: 32 Materijalni rashodi
A112: 3232 Usluge tekućeg i investicijskog održavanja
A113: A 550107 Otplata kredita | B113: 437832.69 | C113: 431503.37 | D113: 98.55
A114: Izvor: 11 Opći prihodi i primici | B114: 7500 | C114: 1170.68 | D114: 15.61
A115: 34 Financijski rashodi | B115: 7500 | C115: 1170.68 | D115: 15.61
A116: 3423 Kamate za primljene kredite i zajmove od kreditnih i ostalih financijskih institucija izvan javnog sektora | C116: 194.85
A117: 3434 Ostali nespomenuti financijski rashodi | C117: 975.83
A118: Izvor: 88 Prenesena sredstva - namjenski primici | B118: 430332.69 | C118: 430332.69 | D118: 100
A119: 54 Izdaci za otplatu glavnice primljenih kredita i zajmova | B119: 430332.69 | C119: 430332.69 | D119: 100
A120: 5443 Otplata glavnice primljenih kredita od tuzemnih kreditnih institucija izvan javnog sektora | C120: 430332.69
A121: Program: 5502 Unapređenje kvalitete odgojno obrazovnog sustava | B121: 10118.83 | C121: 5776.01 | D121: 57.08
A122: A 550205 Sufinanciranje rada pomoćnika u nastavi | B122: 7301.83 | C122: 4003.01 | D122: 54.82
A123: Izvor: 11 Opći prihodi i primici | B123: 3656.44 | C123: 2773.03 | D123: 75.84
A124: 31 Rashodi za zaposlene | B124: 3656.44 | C124: 2773.03 | D124: 75.84
A125: 3111 Plaće za redovan rad | C125: 2773.03
A126: Izvor: 51 Pomoći | B126: 3259.28 | C126: 843.87 | D126: 25.89
A127: 31 Rashodi za zaposlene | B127: 2974.59 | C127: 732.37 | D127: 24.62
A128: 3121 Ostali rashodi za zaposlene | C128: 400
A129: 3132 Doprinosi za obvezno zdravstveno osiguranje | C129: 332.37
A130: 32 Materijalni rashodi | B130: 284.69 | C130: 111.5 | D130: 39.17
A131: 3212 Naknade za prijevoz, za rad na terenu i odvojeni život | C131: 111.5
A132: Izvor: 58 Prenesena sredstva - pomoći | B132: 386.11 | C132: 386.11 | D132: 100
A133: 31 Rashodi za zaposlene | B133: 332.38 | C133: 332.38 | D133: 100
A134: 3111 Plaće za redovan rad | C134: 177.85
A135: 3132 Doprinosi za obvezno zdravstveno osiguranje | C135: 154.53
A136: 32 Materijalni rashodi | B136: 53.73 | C136: 53.73 | D136: 100
A137: 3212 Naknade za prijevoz, za rad na terenu i odvojeni život | C137: 53.73
A138: A 550216 Program "Zdravlje i higijena"
A139: Izvor: 11 Opći prihodi i primici
A140: 32 Materijalni rashodi
A141: 3221 Uredski materijal i ostali materijalni rashodi
A142: A 550221 Osiguranje besplatnih zaliha menstrualnih higijenskih potrepština | B142: 2817 | C142: 1773 | D142: 62.94
A143: Izvor: 52 Pomoći - proračunski korisnici | B143: 2817 | C143: 1773 | D143: 62.94
A144: 38 Ostali rashodi | B144: 2817 | C144: 1773 | D144: 62.94
A145: 3812 Tekuće donacije u naravi | C145: 1773
A146: Program: 5504 Kapitalna ulaganja u odgojno obrazovnu infrastrukturu | B146: 3049.08 | C146: 905 | D146: 29.68
A147: K 550401 Opremanje ustanova školstva | B147: 3049.08 | C147: 905 | D147: 29.68
A148: Izvor: 43 Prihodi za posebne namjene - proračunski korisnici | B148: 2385.47 | C148: 905 | D148: 37.94
A149: 42 Rashodi za nabavu proizvedene dugotrajne imovine | B149: 2385.47 | C149: 905 | D149: 37.94
A150: 4221 Uredska oprema i namještaj | C150: 250
A151: 4227 Uređaji, strojevi i oprema za ostale namjene | C151: 655
A152: Izvor: 44 Prihodi za decentralizirane funkcije
A153: 42 Rashodi za nabavu proizvedene dugotrajne imovine
A154: 4227 Uređaji, strojevi i oprema za ostale namjene
A155: Izvor: 48 Prenesena sredstva - namjenski prihodi
A156: 42 Rashodi za nabavu proizvedene dugotrajne imovine
A157: 4221 Uredska oprema i namještaj
A158: 4223 Oprema za održavanje i zaštitu
A159: Izvor: 52 Pomoći - proračunski korisnici | B159: 132.72
A160: 42 Rashodi za nabavu proizvedene dugotrajne imovine | B160: 132.72
A161: Izvor: 62 Donacije - proračunski korisnici | B161: 530.89
A162: 42 Rashodi za nabavu proizvedene dugotrajne imovine | B162: 530.89
A163: 4223 Oprema za održavanje i zaštitu
A164: 4227 Uređaji, strojevi i oprema za ostale namjene

Sheet višak-manjak
A4: VIŠAK (92) KORIŠTEN ZA POKRIĆE RASHODA (3+4)
G6: u EUR-ima
A7: Račun prihoda/ primitka | B7: Naziv računa | C7: Ostvarenje/Izvršenje 1.1.-30.6.2023. | D7: Izvorni plan / Rebalans 2024. | E7: Ostvarenje/Izvršenje 1.1.-30.6.2024. | F7: Indeks | G7: Indeks
A9: 1 | C9: 2 | D9: 3 | E9: 4 | F9: 5=4/2*100 | G9: 6=4/3*100
A10: 92 | B10: Rezultat poslovanja | C10: =+C11 -> 2242.2 | D10: =+D11 -> 433451.12 | E10: 3118.43 | F10: =E10/C10*100 -> 139.0790295 | G10: =E10/D10*100 -> 0.7194421369
A11: 922 | B11: Višak / manjak prihoda | C11: =1184.32+1057.88 -> 2242.2 | D11: =+D12 -> 433451.12 | E11: =+E12 -> 3118.43 | F11: =E11/C11*100 -> 139.0790295 | G11: =E11/D11*100 -> 0.7194421369
A12: 9221 | B12: Višak prihoda | C12: =2533.51+2242.2 -> 4775.71 | D12: =954.19+585.36+1578.88+430332.69 -> 433451.12 | E12: =954.19+585.36+1578.88 -> 3118.43 | F12: =E12/C12*100 -> 65.29772536 | G12: =E12/D12*100 -> 0.7194421369
A13: UKUPNO VIŠAK KORIŠTEN ZA POKRIĆE RASHODA | C13: =C10 -> 2242.2 | D13: =D10 -> 433451.12 | E13: =E10 -> 3118.43 | F13: =E13/C13*100 -> 139.0790295 | G13: =E13/D13*100 -> 0.7194421369
A16: MANJAK (92) POKRIVEN TEKUĆIM PRIHODIMA (6+7)
G17: u EUR-ima
A18: Račun rashoda/ izdatka | B18: Naziv računa | C18: =+C7 -> Ostvarenje/Izvršenje 1.1.-30.6.2023. | D18: =+D7 -> Izvorni plan / Rebalans 2024. | E18: =+E7 -> Ostvarenje/Izvršenje 1.1.-30.6.2024. | F18: Indeks | G18: Indeks
A20: 1 | C20: 2 | D20: 4 | E20: 5 | F20: 6=5/2*100 | G20: 7=5/4*100
A21: 922 | B21: Rezultat poslovanja | C21: =+C22 -> 31154.23 | D21: =+D22 -> 460618.94 | E21: =+E22 -> 0 | G21: =E21/D21*100 -> 0
A22: 922 | B22: Višak / manjak prihoda | C22: 31154.23 | D22: =+D23 -> 460618.94 | E22: 0 | G22: =E22/D22*100 -> 0
A23: 9222 | B23: Manjak prihoda | C23: 31154.23 | D23: 460618.94 | E23: 0
A24: UKUPNO POKRIVENI MANJAK | C24: =+C22 -> 31154.23 | D24: =+D22 -> 460618.94 | E24: =+E22 -> 0 | G24: =E24/D24*100 -> 0

Sheet posebni izvještaji
D2: MEDICINSKA ŠKOLA U RIJECI - rkp 17546
D8: KORISNIK: | E8: MEDICINSKA ŠKOLA U RIJECI
D10: PREGLED ZADUŽIVANJA PO VRSTI INSTRUMENTA, VALUTNOJ, KAMATNOJ I ROČNOJ STRUKTURI I STANJE KREDITA I ZAJMOVA NA DAN 01.01.2024. I NA DAN 30.06.2024. GODINE
D12: Red. br. | E12: Opis zaduženja po vrsti instrumenta / valutnoj / kamatnoj i ročnoj strukturi | F12: Namjena | G12: Kreditor | H12: Stanje glavnice kredita i zajma 01.01.2024. | I12: Otplate glavnice | J12: Primljeni krediti i zajmovi u tekućoj godini | K12: Ispravci/ revalorizacije / tečajne razlike u tekućoj godini | L12: Stanje glavnice kredita i zajma 30.06.2024.
D13: 1. | E13: Okvirni kredit po žiro računu - kratkoročni do 1 godine | F13: Premostiti vremenski jaz između obveze plaćanja računa za adaptaciju i opremu iz RCK EU projekta do uplate EU sredstava. | G13: ERSTE bank D.D. | H13: 430332.69 | J13: 19820.25 | L13: =H13-I13+J13+K13 -> 450152.94
G14: UKUPNO: | H14: =SUM(H13:H13) -> 430332.69 | I14: =SUM(I13:I13) -> 0 | J14: =SUM(J13:J13) -> 19820.25 | K14: =SUM(K13:K13) -> 0 | L14: =SUM(L13:L13) -> 450152.94
